fUST/lending_fUST_20250811
["ID","MTS","AMOUNT","RATE_DAILY","PERIOD"]
[378397263,1754844635743,-454.0,0.00021052,2]
[378397265,1754844635753,-460.0,0.00021052,2]
[378397267,1754844635762,-460.0,0.00021052,2]
[378397269,1754844635771,-993.64,0.00021052,2]
[378397271,1754844635781,-460.0,0.00021052,2]
[378397273,1754844635790,-460.0,0.00021052,2]
[378397275,1754844635800,-460.0,0.00021053,2]
[378397277,1754844635809,-460.0,0.00021053,2]
[378397291,1754844635930,-460.0,0.00021053,2]
[378397293,1754844635953,-192.20924503,0.00021059,2]
[378397295,1754844635962,-1080.77130042,0.00021078,2]
[378397297,1754844635972,-4043.25709057,0.00021128,2]
[378397299,1754844635981,-990.56,0.00021147,3]
[378397301,1754844635990,-495.28,0.00021147,3]
[378397303,1754844635999,-247.64,0.00021147,3]
[378397305,1754844636009,-81957.1464963,0.00021157,2]
[378397308,1754844636026,-16864.05200303,0.00021157,2]
[378397309,1754844636035,-260.68,0.00021169,10]
[378397310,1754844636045,-446.39,0.00021169,10]
[378397311,1754844636055,-371.99,0.00021169,10]
[378397312,1754844636064,-309.99,0.00021169,10]
[378397313,1754844636074,-254.49316604,0.00021173,2]
[378397314,1754844636083,-314.08574323,0.00021173,2]
[378397315,1754844636095,-185.91425677,0.00021173,2]
[378397316,1754844636104,-500.0,0.00021173,2]
[378397317,1754844636114,-500.0,0.00021173,2]
[378397318,1754844636123,-500.0,0.00021173,2]
[378397319,1754844636132,-500.0,0.00021173,2]
[378397321,1754844636142,-338.78853615,0.00021173,2]
[378397353,1754844638638,-742.93,0.00021147,3]
[378397355,1754844638647,-161.21146385,0.00021173,2]
[378397357,1754844638657,-500.0,0.00021173,2]
[378397359,1754844638667,-615.25537796,0.00021173,2]
[378397361,1754844638676,-500.0,0.00021173,2]
[378397363,1754844638687,-230.06591549,0.00021177,2]
[378397365,1754844638696,-604.68744097,0.00021177,2]
[378397367,1754844638705,-604.68744097,0.00021177,2]
[378397369,1754844638716,-604.68744097,0.00021177,2]
[378397371,1754844638728,-604.68744097,0.00021177,2]
[378397373,1754844638738,-604.68744097,0.00021177,2]
[378397375,1754844638748,-604.68744097,0.00021177,2]
[378397377,1754844638758,-604.68744097,0.00021177,2]
[378397379,1754844638768,-604.68744097,0.00021177,2]
[378397381,1754844638778,-604.68744097,0.00021177,2]
[378397384,1754844638787,-604.68744097,0.00021177,2]
[378397386,1754844638799,-604.68744097,0.00021177,2]
[378397388,1754844638809,-233.74771797,0.00021177,2]
[378397392,1754844638835,-370.939723,0.00021177,2]
[378397395,1754844638845,-604.68744097,0.00021177,2]
[378397397,1754844638855,-604.68744097,0.00021177,2]
[378397399,1754844638864,-604.68744097,0.00021177,2]
[378397401,1754844638873,-604.68744097,0.00021177,2]
[378397403,1754844638884,-604.68744097,0.00021177,2]
[378397405,1754844638894,-604.68744097,0.00021177,2]
[378397407,1754844638904,-604.68744097,0.00021177,2]
[378397409,1754844638914,-604.68744097,0.00021177,2]
[378397411,1754844638925,-604.68744097,0.00021177,2]
[378397413,1754844638934,-604.68744097,0.00021177,2]
[378397415,1754844638944,-604.68744097,0.00021177,2]
[378397417,1754844638954,-604.68744097,0.00021177,2]
[378397419,1754844638963,-460.0,0.00021178,2]
[378397421,1754844638973,-461.04985421,0.00021178,2]
[378397423,1754844638982,-460.0,0.00021178,2]
[378397425,1754844638991,-460.0,0.00021178,2]
[378397427,1754844639001,-460.0,0.00021178,2]
[378397429,1754844639011,-460.0,0.00021178,2]
[378397431,1754844639020,-460.0,0.00021178,2]
[378397433,1754844639029,-460.0,0.00021178,2]
[378397435,1754844639040,-460.0,0.00021178,2]
[378397437,1754844639051,-460.0,0.00021178,2]
[378397439,1754844639060,-460.0,0.00021178,2]
[378397441,1754844639070,-460.0,0.00021178,2]
[378397443,1754844639079,-500.0,0.00021178,2]
[378397445,1754844639089,-500.0,0.00021178,2]
[378397447,1754844639098,-500.0,0.00021178,2]
[378397449,1754844639108,-500.0,0.00021178,2]
[378397451,1754844639118,-500.0,0.00021178,2]
[378397453,1754844639127,-500.0,0.00021178,2]
[378397455,1754844639136,-241.92,0.00021178,2]
[378397457,1754844639146,-460.0,0.00021178,2]
[378397459,1754844639156,-460.0,0.00021178,2]
[378397461,1754844639165,-460.0,0.00021178,2]
[378397463,1754844639175,-460.0,0.00021178,2]
[378397465,1754844639185,-159.69276201,0.00021178,2]
[378397467,1754844639194,-344.792922,0.00021178,2]
[378397469,1754844639203,-460.0,0.00021178,2]
[378397471,1754844639212,-460.0,0.00021178,2]
[378397473,1754844639222,-460.0,0.00021178,2]
[378397475,1754844639231,-460.0,0.00021178,2]
[378397477,1754844639241,-526.87540293,0.00021178,2]
[378397479,1754844639251,-416.06567115,0.00021178,2]
[378397481,1754844639261,-460.0,0.00021178,2]
[378397484,1754844639270,-460.0,0.00021178,2]
[378397486,1754844639280,-460.0,0.00021178,2]
[378397488,1754844639290,-819.57,0.00021178,2]
[378397490,1754844639299,-460.0,0.00021178,2]
[378397492,1754844639309,-460.0,0.00021178,2]
[378397494,1754844639318,-460.0,0.00021178,2]
[378397496,1754844639327,-460.0,0.00021178,2]
[378397498,1754844639337,-460.0,0.00021178,2]
[378397500,1754844639346,-461.54804856,0.00021178,2]
[378397502,1754844639356,-460.0,0.00021178,2]
[378397504,1754844639365,-460.0,0.00021178,2]
[378397506,1754844639374,-460.0,0.00021178,2]
[378397508,1754844639384,-460.0,0.00021178,2]
[378397510,1754844639393,-460.0,0.00021178,2]
[378397512,1754844639402,-460.0,0.00021178,2]
[378397514,1754844639411,-460.0,0.00021178,2]
[378397516,1754844639420,-460.0,0.00021178,2]
[378397518,1754844639429,-460.0,0.00021178,2]
[378397520,1754844639439,-460.0,0.00021178,2]
[378397522,1754844639448,-460.0,0.00021178,2]
[378397524,1754844639459,-460.0,0.00021178,2]
[378397526,1754844639468,-565.13,0.00021178,2]
[378397528,1754844639478,-460.0,0.00021178,2]
[378397530,1754844639487,-465.62504101,0.00021178,2]
[378397532,1754844639497,-238.16419723,0.00021178,2]
[378397534,1754844639507,-460.0,0.00021178,2]
[378397536,1754844639517,-460.0,0.00021178,2]
[378397538,1754844639526,-460.0,0.00021178,2]
[378397540,1754844639536,-460.0,0.00021178,2]
[378397542,1754844639545,-1334.47,0.00021178,2]
[378397544,1754844639554,-460.0,0.00021178,2]
[378397546,1754844639563,-460.0,0.00021178,2]
[378397548,1754844639573,-460.0,0.00021178,2]
[378397550,1754844639582,-462.60849014,0.00021178,2]
[378397552,1754844639591,-460.0,0.00021178,2]
[378397554,1754844639601,-461.66545177,0.00021178,2]
[378397556,1754844639610,-460.0,0.00021178,2]
[378397558,1754844639619,-460.0,0.00021178,2]
[378397560,1754844639629,-460.0,0.00021178,2]
[378397562,1754844639638,-460.0,0.00021178,2]
[378397564,1754844639648,-460.0,0.00021178,2]
[378397566,1754844639657,-460.0,0.00021178,2]
[378397568,1754844639666,-460.0,0.00021178,2]
[378397570,1754844639676,-460.0,0.00021178,2]
[378397572,1754844639685,-460.73414518,0.00021178,2]
[378397574,1754844639694,-460.0,0.00021178,2]
[378397576,1754844639703,-439.41838842,0.00021178,2]
[378397578,1754844639713,-460.0,0.00021178,2]
[378397580,1754844639727,-460.0,0.00021178,2]
[378397581,1754844639736,-460.0,0.00021178,2]
[378397582,1754844639745,-460.0,0.00021178,2]
[378397583,1754844639755,-460.0,0.00021178,2]
[378397584,1754844639765,-460.0,0.00021178,2]
[378397585,1754844639774,-330428.72449447,0.00021179,2]
[378397586,1754844639784,-511.36213816,0.00021278,2]
[378397587,1754844639794,-216.64838636,0.00021279,2]
[378397588,1754844639804,-461.62346162,0.00021279,2]
[378397589,1754844639813,-160.0,0.00021279,2]
[378397590,1754844639822,-215.44987349,0.00021279,2]
[378397591,1754844639831,-843.0869304,0.00021279,2]
[378397592,1754844639841,-160.0,0.00021279,2]
[378397593,1754844639850,-231.96268195,0.00021279,2]
[378397594,1754844639860,-160.0,0.00021279,2]
[378397595,1754844639869,-160.0,0.00021279,2]
[378397597,1754844639878,-160.0,0.00021279,2]
[378397598,1754844639888,-160.0,0.00021279,2]
[378397600,1754844639897,-12668.57659669,0.00021279,2]
[378397602,1754844639907,-527.86640923,0.00021279,2]
[378397604,1754844639916,-160.0,0.00021281,2]
[378397606,1754844639926,-460.0,0.00021326,2]
[378397608,1754844639935,-460.0,0.00021326,2]
[378397610,1754844639945,-215.87054938,0.00021326,2]
[378397612,1754844639954,-460.0,0.00021326,2]
[378397614,1754844639964,-460.0,0.00021326,2]
[378397615,1754844639973,-464.5026368,0.00021326,2]
[378397617,1754844639983,-460.0,0.00021326,2]
[378397619,1754844639992,-460.0,0.00021326,2]
[378397621,1754844640001,-178.13823421,0.00021326,2]
[378397623,1754844640011,-460.0,0.00021326,2]
[378397625,1754844640020,-993.64,0.00021326,2]
[378397627,1754844640029,-460.0,0.00021326,2]
[378397629,1754844640039,-460.0,0.00021326,2]
[378397631,1754844640049,-460.0,0.00021327,2]
[378397634,1754844640059,-460.0,0.00021327,2]
[378397636,1754844640068,-151.0,0.0002136,2]
[378397639,1754844640077,-151.0,0.0002136,2]
[378397641,1754844640089,-151.0,0.0002136,2]
[378397643,1754844640099,-151.0,0.0002136,2]
[378397646,1754844640109,-151.0,0.0002136,2]
[378397648,1754844640118,-151.0,0.0002136,2]
[378397650,1754844640128,-151.0,0.0002136,2]
[378397652,1754844640137,-151.0,0.0002136,2]
[378397654,1754844640147,-151.0,0.0002136,2]
[378397656,1754844640156,-151.0,0.0002136,2]
[378397658,1754844640165,-151.0,0.0002136,2]
[378397660,1754844640175,-151.0,0.0002136,2]
[378397662,1754844640184,-151.0,0.0002136,2]
[378397664,1754844640194,-151.0,0.0002136,2]
[378397666,1754844640203,-151.0,0.0002136,2]
[378397668,1754844640213,-151.0,0.0002136,2]
[378397670,1754844640223,-151.0,0.0002136,2]
[378397672,1754844640232,-819.57,0.00021452,2]
[378397674,1754844640242,-460.0,0.00021452,2]
[378397676,1754844640251,-460.0,0.00021452,2]
[378397678,1754844640261,-460.0,0.00021452,2]
[378397680,1754844640270,-565.13,0.00021452,2]
[378397682,1754844640280,-460.0,0.00021452,2]
[378397684,1754844640289,-1334.47,0.00021452,2]
[378397686,1754844640300,-281.1019768,0.00021452,2]
[378397688,1754844640310,-460.0,0.00021452,2]
[378397690,1754844640319,-160.0,0.0002146,2]
[378397705,1754844640455,-465.74081597,0.000216,2]
[378397707,1754844640464,-460.0,0.000216,2]
[378397709,1754844640474,-460.0,0.000216,2]
[378397711,1754844640483,-460.0,0.000216,2]
[378397713,1754844640492,-460.0,0.000216,2]
[378397715,1754844640502,-993.64,0.000216,2]
[378397717,1754844640512,-460.0,0.000216,2]
[378397719,1754844640521,-460.0,0.000216,2]
[378397721,1754844640530,-460.0,0.00021601,2]
[378397723,1754844640539,-460.0,0.00021601,2]
[378397725,1754844640548,-1080.77130039,0.00021659,2]
[378397727,1754844640558,-1102.06763159,0.00021721,2]
[378397729,1754844640568,-819.57,0.00021726,2]
[378397731,1754844640578,-460.0,0.00021726,2]
[378397733,1754844640587,-460.0,0.00021726,2]
[378397736,1754844640598,-460.0,0.00021726,2]
[378397737,1754844640607,-565.13,0.00021726,2]
[378397739,1754844640617,-553.62528636,0.00021726,2]
[378397742,1754844640626,-1334.47,0.00021726,2]
[378397744,1754844640636,-460.0,0.00021726,2]
[378397745,1754844640646,-200.0,0.00021815,15]
[378397748,1754844640656,-300.0,0.00021815,15]
[378397750,1754844640665,-460.0,0.00021874,2]
[378397752,1754844640674,-460.0,0.00021874,2]
[378397754,1754844640687,-993.64,0.00021874,2]
[378397756,1754844640697,-460.0,0.00021874,2]
[378397758,1754844640707,-460.0,0.00021874,2]
[378397760,1754844640720,-460.0,0.00021875,2]
[378397762,1754844640729,-460.0,0.00021875,2]
[378397764,1754844640739,-6621.61,0.00021917,2]
[378397765,1754844640748,-153.72874864,0.00021918,2]
[378397767,1754844640758,-500.0,0.00021973,2]
[378397769,1754844640767,-500.0,0.00021973,2]
[378397771,1754844640777,-500.0,0.00021973,2]
[378397773,1754844640786,-500.0,0.00021973,2]
[378397775,1754844640797,-500.0,0.00021973,2]
[378397777,1754844640807,-533.9224792,0.00021973,2]
[378397779,1754844640816,-500.0,0.00021973,2]
[378397781,1754844640827,-500.0,0.00021973,2]
[378397783,1754844640837,-500.0,0.00021973,2]
[378397785,1754844640846,-500.0,0.00021973,2]
[378397787,1754844640855,-83435.29,0.00022,7]
[378397789,1754844640864,-44236.47,0.00022,2]
[378397791,1754844640874,-19553.2,0.00022,7]
[378397793,1754844640884,-461.62346162,0.00022,7]
[378397795,1754844640894,-819.57,0.00022,2]
[378397797,1754844640903,-527.86640923,0.00022,7]
[378397799,1754844640913,-185.0,0.00022,2]
[378397801,1754844640922,-460.0,0.00022,2]
[378397803,1754844640931,-460.0,0.00022,2]
[378397805,1754844640941,-460.0,0.00022,2]
[378397807,1754844640950,-565.13,0.00022,2]
[378397809,1754844640959,-1334.47,0.00022,2]
[378397811,1754844640970,-9787.89,0.00022,7]
[378397813,1754844640982,-12668.57659669,0.00022,7]
[378397815,1754844640992,-344.75,0.00022,2]
[378397817,1754844641001,-460.0,0.00022,2]
[378397819,1754844641011,-2518.59,0.00022,2]
[378397821,1754844641020,-525.0,0.00022,2]
[378397823,1754844641029,-215.44987349,0.00022,7]
[378397825,1754844641038,-260.0,0.00022008,2]
[378397827,1754844641048,-460.0,0.00022148,2]
[378397829,1754844641057,-993.64,0.00022148,2]
[378397831,1754844641067,-460.0,0.00022148,2]
[378397833,1754844641079,-460.0,0.00022148,2]
[378397835,1754844641087,-460.0,0.00022149,2]
[378397837,1754844641096,-460.0,0.00022149,2]
[378397839,1754844641106,-500.0,0.00022173,2]
[378397841,1754844641115,-500.0,0.00022173,2]
[378397843,1754844641124,-500.0,0.00022173,2]
[378397845,1754844641134,-500.0,0.00022173,2]
[378397847,1754844641144,-512.33653393,0.00022173,2]
[378397849,1754844641153,-525.0,0.00022192,7]
[378397851,1754844641163,-1080.77130039,0.00022239,2]
[378397853,1754844641172,-2983.25212382,0.00022252,5]
[378397855,1754844641182,-153.0,0.00022268,2]
[378397857,1754844641192,-153.0,0.00022272,2]
[378397859,1754844641201,-819.57,0.00022274,2]
[378397861,1754844641210,-460.0,0.00022274,2]
[378397863,1754844641220,-460.0,0.00022274,2]
[378397865,1754844641229,-460.0,0.00022274,2]
[378397867,1754844641238,-565.13,0.00022274,2]
[378397869,1754844641248,-1334.47,0.00022274,2]
[378397871,1754844641257,-460.0,0.00022274,2]
[378397873,1754844641267,-500.0,0.0002236,2]
[378397875,1754844641276,-460.0,0.00022422,2]
[378397877,1754844641285,-993.64,0.00022422,2]
[378397879,1754844641294,-460.0,0.00022422,2]
[378397881,1754844641304,-460.0,0.00022422,2]
[378397883,1754844641313,-460.0,0.00022423,2]
[378397885,1754844641322,-366.67674561,0.00022423,2]
[378397888,1754844641336,-4043.25709057,0.00022464,2]
[378397889,1754844641345,-1981.12,0.00022517,3]
[378397892,1754844641355,-990.56,0.00022517,3]
[378397894,1754844641364,-495.28,0.00022517,3]
[378397895,1754844641374,-1000.0,0.00022521,2]
[378397898,1754844641383,-504.28008434,0.00022521,2]
[378397900,1754844641393,-1000.0,0.00022521,2]
[378397902,1754844641402,-500.0,0.00022521,2]
[378397904,1754844641411,-1000.0,0.00022521,2]
[378397906,1754844641420,-702.85191842,0.00022521,2]
[378397908,1754844641430,-1000.0,0.00022521,2]
[378397910,1754844641440,-819.57,0.00022548,2]
[378397912,1754844641449,-460.0,0.00022548,2]
[378397914,1754844641459,-460.0,0.00022548,2]
[378397915,1754844641468,-460.0,0.00022548,2]
[378397917,1754844641477,-565.13,0.00022548,2]
[378397919,1754844641487,-1334.47,0.00022548,2]
[378397921,1754844641495,-460.0,0.00022548,2]
[378397923,1754844641505,-360.0,0.00022556,2]
[378397925,1754844641514,-460.0,0.00022696,2]
[378397927,1754844641524,-993.64,0.00022696,2]
[378397929,1754844641533,-460.0,0.00022696,2]
[378397931,1754844641543,-460.0,0.00022696,2]
[378397933,1754844641552,-460.0,0.00022697,2]
[378397935,1754844641562,-1000.0,0.00022721,2]
[378397937,1754844641571,-1000.0,0.00022721,2]
[378397939,1754844641581,-995.62790489,0.00022721,2]
[378397941,1754844641591,-1000.0,0.00022721,2]
[378397943,1754844641600,-776.0,0.00022721,2]
[378397945,1754844641609,-151.0,0.00022729,2]
[378397947,1754844641619,-1080.77130039,0.0002282,2]
[378397950,1754844641629,-819.57,0.00022822,2]
[378397952,1754844641639,-587.93164712,0.00022822,2]
[378397953,1754844641647,-460.0,0.00022822,2]
[378397955,1754844641657,-460.0,0.00022822,2]
[378397957,1754844641666,-565.13,0.00022822,2]
[378397959,1754844641676,-1334.47,0.00022822,2]
[378397961,1754844641685,-460.0,0.00022822,2]
[378397963,1754844641695,-778.0,0.00022823,2]
[378397965,1754844641704,-5888.0,0.00022875,2]
[378397968,1754844641717,-1000.0,0.00022908,2]
[378397969,1754844641728,-596.09953966,0.0002297,2]
[378397971,1754844641737,-993.64,0.0002297,2]
[378397973,1754844641746,-460.0,0.0002297,2]
[378397975,1754844641757,-460.0,0.0002297,2]
[378397977,1754844641767,-460.0,0.00022971,2]
[378397979,1754844641776,-160.0,0.00023,2]
[378397981,1754844641786,-151.0,0.00023,6]
[378397984,1754844641797,-5888.0,0.00023012,2]
[378397986,1754844641809,-525.0,0.00023014,7]
[378397987,1754844641821,-776.0,0.00023041,2]
[378397990,1754844641830,-1000.0,0.00023068,2]
[378397992,1754844641840,-1500.0,0.00023068,2]
[378397994,1754844641849,-500.0,0.00023068,2]
[378397996,1754844641858,-1500.0,0.00023068,2]
[378397998,1754844641866,-1500.0,0.00023068,2]
[378398000,1754844641875,-1080.0,0.00023091,2]
[378398001,1754844641885,-819.57,0.00023096,2]
[378398003,1754844641895,-460.0,0.00023096,2]
[378398005,1754844641904,-460.0,0.00023096,2]
[378398007,1754844641913,-565.13,0.00023096,2]
[378398009,1754844641923,-1334.47,0.00023096,2]
[378398011,1754844641933,-460.0,0.00023096,2]
[378398013,1754844641943,-151.0,0.000231,9]
[378398015,1754844641951,-460.0,0.00023104,2]
[378398017,1754844641961,-184.37172481,0.00023183,2]
[378398019,1754844641970,-2518.59,0.00023183,2]
[378398021,1754844641979,-151.0,0.000232,8]
[378398023,1754844641989,-205.416,0.00023244,3]
[378398025,1754844641998,-993.64,0.00023244,2]
[378398027,1754844642007,-460.0,0.00023244,2]
[378398029,1754844642016,-213.21393231,0.00023244,2]
[378398031,1754844642026,-460.0,0.00023245,2]
[378398033,1754844642036,-156.568908,0.00023267,7]
[378398034,1754844642045,-1500.0,0.00023268,2]
[378398035,1754844642055,-1500.0,0.00023268,2]
[378398036,1754844642065,-1500.0,0.00023268,2]
[378398037,1754844642075,-500.0,0.00023288,2]
[378398038,1754844642085,-1068.9,0.00023294,2]
[378398039,1754844642095,-9787.89,0.000233,7]
[378398040,1754844642104,-1080.0,0.00023356,2]
[378398041,1754844642114,-819.57,0.0002337,2]
[378398042,1754844642124,-460.0,0.0002337,2]
[378398043,1754844642133,-460.0,0.0002337,2]
[378398044,1754844642144,-565.13,0.0002337,2]
[378398045,1754844642154,-1334.47,0.0002337,2]
[378398046,1754844642163,-460.0,0.0002337,2]
[378398047,1754844642173,-151.0,0.000234,9]
[378398048,1754844642182,-19553.2,0.000234,7]
[378398049,1754844642192,-1080.77130039,0.000234,2]
[378398050,1754844642201,-1500.0,0.00023456,2]
[378398051,1754844642211,-5888.0,0.0002347,2]
[378398052,1754844642221,-216.0,0.00023471,2]
[378398053,1754844642230,-83435.29,0.000235,7]
[378398054,1754844642242,-9145.65138118,0.000235,2]
[378398055,1754844642258,-35090.81861882,0.000235,2]
[378398056,1754844642268,-993.64,0.00023518,2]
[378398057,1754844642279,-460.0,0.00023518,2]
[378398058,1754844642288,-460.0,0.00023519,2]
[378398059,1754844642298,-151.0,0.000236,6]
[378398060,1754844642308,-2000.0,0.00023616,2]
[378398061,1754844642319,-2000.0,0.00023616,2]
[378398063,1754844642328,-2000.0,0.00023616,2]
[378398064,1754844642338,-819.57,0.00023644,2]
[378398066,1754844642347,-275.55954589,0.00023644,2]
[378398068,1754844642357,-460.0,0.00023644,2]
[378398070,1754844642366,-565.13,0.00023644,2]
[378398072,1754844642376,-1334.47,0.00023644,2]
[378398074,1754844642385,-460.0,0.00023644,2]
[378398076,1754844642394,-560.0,0.00023652,2]
[378398078,1754844642404,-216.0,0.00023759,2]
[378398080,1754844642413,-151.4297,0.00023781,2]
[378398082,1754844642422,-993.64,0.00023792,2]
[378398084,1754844642431,-460.0,0.00023792,2]
[378398086,1754844642441,-460.0,0.00023793,2]
[378398088,1754844642450,-11980.07339073,0.000238,2]
[378398090,1754844642460,-4043.25709057,0.000238,2]
[378398092,1754844642469,-1080.0,0.0002381,2]
[378398093,1754844642479,-504.57187711,0.00023816,2]
[378398095,1754844642488,-2000.0,0.00023816,2]
[378398097,1754844642498,-2055.93351593,0.00023816,2]
[378398099,1754844642508,-1080.0,0.00023819,2]
[378398101,1754844642517,-150.0,0.00023873,2]
[378398103,1754844642526,-150.0,0.00023873,2]
[378398105,1754844642535,-150.0,0.00023873,2]
[378398107,1754844642544,-500.0,0.00023873,2]
[378398109,1754844642554,-150.0,0.00023873,2]
[378398111,1754844642563,-216.0,0.00023886,2]
[378398113,1754844642574,-200.51240394,0.00023899,2]
[378398115,1754844642583,-460.0,0.00023899,2]
[378398117,1754844642592,-461.77971253,0.00023899,2]
[378398119,1754844642602,-1847.11885012,0.00023899,2]
[378398121,1754844642614,-4156.01741277,0.00023899,2]
[378398123,1754844642626,-623.00221258,0.00023899,2]
[378398125,1754844642636,-2492.00885031,0.00023899,2]
[378398127,1754844642646,-8830.42401618,0.000239,2]
[378398129,1754844642656,-350345.11225621,0.000239,2]
[378398132,1754844642668,-3963.80000001,0.000239,2]
[378398140,1754844642747,-258.32,0.00021169,10]
[378398142,1754844642758,-755.67329382,0.000239,2]
[378398254,1754844643743,-2745.05452782,0.000239,2]
[378398261,1754844643800,-12751.53,0.000239,2]
[378398600,1754844647113,-2765.37430762,0.000239,2]
[378400899,1754844972497,399.15610732,0.00030136,120]
[378400902,1754845024886,996.38692655,0.00031431,30]
[378400904,1754845117015,74.6071706,0.00019466,2]
[378400905,1754845117048,184.08207288,0.00019466,2]
[378400906,1754845137139,5030.782,0.00031448,30]
[378400908,1754845217650,191.5641075,0.00019935,2]
[378400923,1754845531400,213.471287,0.00013699,2]
[378400926,1754845570431,666.0,0.0001925,2]
[378400927,1754845573887,1412.1552826,0.0001925,2]
[378400930,1754845634470,302.75782099,0.000189,2]
[378400931,1754845634507,302.75782099,0.00019656,2]
[378400932,1754845634549,302.75782099,0.00019089,2]
[378400933,1754845634582,302.75782099,0.00019278,2]
[378400934,1754845634631,302.75782099,0.00019467,2]
[378400935,1754845634693,454.13673149,0.00019845,4]
[378400936,1754845643115,-201.44419,0.00019966,2]
[378400937,1754845643136,-300.0,0.00019968,2]
[378400938,1754845643156,-300.0,0.00019969,2]
[378400939,1754845643177,-300.0,0.00019969,2]
[378400940,1754845643203,-1200.0,0.00019969,2]
[378400941,1754845643223,-300.0,0.00019969,2]
[378400942,1754845643243,-532.0,0.00019969,2]
[378400943,1754845643265,-3920.74380141,0.0001997,2]
[378400947,1754845751453,302.78807257,0.00019493,2]
[378400948,1754845751507,301.68517022,0.00019688,2]
[378401040,1754845832169,-300.0,0.00019969,2]
[378401043,1754845832180,-300.0,0.00019969,2]
[378401047,1754845832189,-557.61811563,0.00019969,2]
[378401583,1754845837826,-642.38188437,0.00019969,2]
[378401586,1754845837837,-5697.89076085,0.0001997,2]
[378401590,1754845837870,-15281.36543774,0.0001997,2]
[378401592,1754845837881,-160.0,0.0002,3]
[378401594,1754845837891,-151.59067157,0.00020034,4]
[378401596,1754845837901,-6629.4605707,0.00020068,2]
[378401598,1754845837910,-213.471287,0.00020187,2]
[378401600,1754845837920,-160.0,0.00020772,2]
[378401603,1754845837930,-2533.41229088,0.00020776,2]
[378401606,1754845837941,-460.0,0.00020776,2]
[378401609,1754845837950,-460.0,0.00020776,2]
[378401611,1754845837960,-460.0,0.00020776,2]
[378401613,1754845837970,-460.0,0.00020776,2]
[378401616,1754845837980,-460.0,0.00020776,2]
[378401618,1754845837989,-460.0,0.00020776,2]
[378401620,1754845837999,-460.0,0.00020776,2]
[378401622,1754845838009,-460.0,0.00020776,2]
[378401624,1754845838018,-460.0,0.00020776,2]
[378401626,1754845838029,-460.0,0.00020776,2]
[378401628,1754845838041,-460.0,0.00020776,2]
[378401630,1754845838050,-460.0,0.00020776,2]
[378401632,1754845838059,-460.0,0.00020776,2]
[378401634,1754845838070,-460.0,0.00020776,2]
[378401636,1754845838079,-460.0,0.00020776,2]
[378401638,1754845838089,-463.11060539,0.00020776,2]
[378401640,1754845838099,-640.19,0.00020776,2]
[378401642,1754845838111,-460.0,0.00020776,2]
[378401644,1754845838122,-1425.82,0.00020776,2]
[378401646,1754845838131,-463.11882144,0.00020776,2]
[378401648,1754845838141,-460.0,0.00020776,2]
[378401650,1754845838151,-460.0,0.00020776,2]
[378401652,1754845838160,-460.0,0.00020776,2]
[378401654,1754845838170,-460.0,0.00020776,2]
[378401656,1754845838180,-460.0,0.00020776,2]
[378401658,1754845838189,-460.0,0.00020776,2]